[Event "*** Qualifier 2: Titled Tuesday 3|2 Blitz"]
[Site "Chess.com"]
[Date "2017.04.11"]
[Round "9"]
[White "feigelag"]
[Black "GeorgMeier"]
[Result "0-1"]
[WhiteElo "2246"]
[BlackElo "2719"]
[TimeControl "180+2"]
[EndTime "15:11:12 PDT"]
[Termination "GeorgMeier won by checkmate"]

1. d4 {[%clk 0:02:57.5]} 1... e6 {[%clk 0:03:00]} 2. c4 {[%clk 0:02:58.5]} 2...
Nf6 {[%clk 0:03:01.2]} 3. Nc3 {[%clk 0:02:59.2]} 3... Bb4 {[%clk 0:03:02.1]} 4.
e3 {[%clk 0:03:00.4]} 4... O-O {[%clk 0:03:02.4]} 5. Ne2 {[%clk 0:03:01.6]} 5...
d5 {[%clk 0:03:02.4]} 6. a3 {[%clk 0:03:02.1]} 6... Bd6 {[%clk 0:03:03.6]} 7. c5
{[%clk 0:03:00.6]} 7... Be7 {[%clk 0:03:04.4]} 8. b4 {[%clk 0:03:01.4]} 8... c6
{[%clk 0:03:03.4]} 9. Nf4 {[%clk 0:03:01.9]} 9... b6 {[%clk 0:03:04.6]} 10. Be2
{[%clk 0:02:58.6]} 10... a5 {[%clk 0:03:05.7]} 11. Bd2 {[%clk 0:02:56.9]} 11...
Ba6 {[%clk 0:03:00.6]} 12. O-O {[%clk 0:02:55.3]} 12... Bxe2 {[%clk 0:02:49.9]}
13. Qxe2 {[%clk 0:02:56.2]} 13... Nbd7 {[%clk 0:02:51]} 14. Nd3 {[%clk
0:02:56.9]} 14... axb4 {[%clk 0:02:46.1]} 15. axb4 {[%clk 0:02:57.3]} 15... Qc7
{[%clk 0:02:47.5]} 16. Rab1 {[%clk 0:02:54.9]} 16... Rfc8 {[%clk 0:02:25.1]} 17.
f3 {[%clk 0:02:41.9]} 17... bxc5 {[%clk 0:02:02.4]} 18. bxc5 {[%clk 0:02:42.4]}
18... e5 {[%clk 0:02:03.5]} 19. Be1 {[%clk 0:02:38.5]} 19... exd4 {[%clk
0:01:49.7]} 20. exd4 {[%clk 0:02:39.4]} 20... Re8 {[%clk 0:01:50.8]} 21. Bg3
{[%clk 0:02:30.8]} 21... Qc8 {[%clk 0:01:51.6]} 22. Qd2 {[%clk 0:02:28]} 22...
Bd8 {[%clk 0:01:46.3]} 23. Rfe1 {[%clk 0:02:22.5]} 23... Ba5 {[%clk 0:01:43.6]}
24. Qc2 {[%clk 0:02:22.1]} 24... Rxe1+ {[%clk 0:01:33.6]} 25. Rxe1 {[%clk
0:02:17.6]} 25... Nf8 {[%clk 0:01:34.2]} 26. Rb1 {[%clk 0:02:14.8]} 26... Ne6
{[%clk 0:01:31.6]} 27. Ne2 {[%clk 0:02:14.5]} 27... Nd7 {[%clk 0:01:31.8]} 28.
Bd6 {[%clk 0:02:08.6]} 28... Bd8 {[%clk 0:01:26.5]} 29. Ne5 {[%clk 0:01:48]}
29... Nxe5 {[%clk 0:01:04.2]} 30. Bxe5 {[%clk 0:01:49.1]} 30... Bc7 {[%clk
0:00:55.4]} 31. Qf5 {[%clk 0:01:44.2]} 31... Rb8 {[%clk 0:00:34]} 32. Re1 {[%clk
0:01:42.3]} 32... g6 {[%clk 0:00:30.2]} 33. Qf6 {[%clk 0:01:42.5]} 33... Bxe5
{[%clk 0:00:31.4]} 34. Qxe5 {[%clk 0:01:43.6]} 34... Qc7 {[%clk 0:00:32.7]} 35.
Qxc7 {[%clk 0:01:43]} 35... Nxc7 {[%clk 0:00:33.7]} 36. Nf4 {[%clk 0:01:42.8]}
36... Kf8 {[%clk 0:00:34.5]} 37. Nd3 {[%clk 0:01:40.2]} 37... f6 {[%clk
0:00:35.5]} 38. Ra1 {[%clk 0:01:35.9]} 38... Nb5 {[%clk 0:00:33.4]} 39. Ra4
{[%clk 0:01:33.7]} 39... Ke7 {[%clk 0:00:24.2]} 40. Kf2 {[%clk 0:01:34.8]} 40...
Kd7 {[%clk 0:00:25.4]} 41. g4 {[%clk 0:01:34.4]} 41... h5 {[%clk 0:00:24.6]} 42.
gxh5 {[%clk 0:01:35.3]} 42... gxh5 {[%clk 0:00:26.5]} 43. h4 {[%clk 0:01:36.5]}
43... Re8 {[%clk 0:00:22.8]} 44. Nf4 {[%clk 0:01:33.2]} 44... Rh8 {[%clk
0:00:23.9]} 45. Rb4 {[%clk 0:01:22.7]} 45... Nc7 {[%clk 0:00:17.4]} 46. Rb7
{[%clk 0:01:17.6]} 46... Kc8 {[%clk 0:00:18.2]} 47. Ra7 {[%clk 0:01:14.9]} 47...
Kb8 {[%clk 0:00:19]} 48. Ra1 {[%clk 0:01:15]} 48... Nb5 {[%clk 0:00:19.4]} 49.
Ke3 {[%clk 0:01:16]} 49... Kc7 {[%clk 0:00:19.1]} 50. Kd3 {[%clk 0:01:15.7]}
50... Kb7 {[%clk 0:00:16.7]} 51. Re1 {[%clk 0:01:14]} 51... Rg8 {[%clk
0:00:14.8]} 52. Re7+ {[%clk 0:01:14.2]} 52... Ka6 {[%clk 0:00:15.8]} 53. Re6
{[%clk 0:01:15.3]} 53... Kb7 {[%clk 0:00:15]} 54. Nxd5 {[%clk 0:01:16.3]} 54...
cxd5 {[%clk 0:00:14.5]} 55. Rb6+ {[%clk 0:01:16.8]} 55... Kc7 {[%clk 0:00:16.1]}
56. Rxb5 {[%clk 0:01:18.1]} 56... Rg3 {[%clk 0:00:17.1]} 57. Ke3 {[%clk
0:01:19.3]} 57... Rh3 {[%clk 0:00:18.2]} 58. Rb6 {[%clk 0:01:15.2]} 58... Rxh4
{[%clk 0:00:19.6]} 59. Rxf6 {[%clk 0:01:16.2]} 59... Rh1 {[%clk 0:00:21]} 60.
Rc6+ {[%clk 0:01:16.3]} 60... Kb7 {[%clk 0:00:21.7]} 61. Rd6 {[%clk 0:01:08.9]}
61... h4 {[%clk 0:00:16.3]} 62. Rxd5 {[%clk 0:01:01.4]} 62... h3 {[%clk
0:00:17.6]} 63. Kf2 {[%clk 0:01:02.7]} 63... Kc7 {[%clk 0:00:15.2]} 64. Rh5
{[%clk 0:00:59.2]} 64... h2 {[%clk 0:00:16.6]} 65. Ke2 {[%clk 0:00:52.7]} 65...
Ra1 {[%clk 0:00:16.5]} 66. Ke3 {[%clk 0:00:51.9]} 66... h1=Q {[%clk 0:00:17]}
67. Rxh1 {[%clk 0:00:52.9]} 67... Rxh1 {[%clk 0:00:18.9]} 68. f4 {[%clk
0:00:54]} 68... Kc6 {[%clk 0:00:20.1]} 69. Ke4 {[%clk 0:00:55.1]} 69... Re1+
{[%clk 0:00:20.7]} 70. Kf5 {[%clk 0:00:56.4]} 70... Kd5 {[%clk 0:00:22.2]} 71.
Kf6 {[%clk 0:00:57.6]} 71... Kxd4 {[%clk 0:00:23.6]} 72. c6 {[%clk 0:00:58.7]}
72... Rc1 {[%clk 0:00:24.4]} 73. f5 {[%clk 0:00:59.8]} 73... Rxc6+ {[%clk
0:00:25.3]} 74. Ke7 {[%clk 0:01:01]} 74... Ke5 {[%clk 0:00:26.9]} 75. f6 {[%clk
0:01:02.4]} 75... Rxf6 {[%clk 0:00:28.3]} 76. Kd7 {[%clk 0:01:03.5]} 76... Rh6
{[%clk 0:00:29.5]} 77. Ke7 {[%clk 0:01:03.3]} 77... Rh7+ {[%clk 0:00:30.6]} 78.
Kf8 {[%clk 0:01:04.6]} 78... Kf6 {[%clk 0:00:31.9]} 79. Kg8 {[%clk 0:01:05.8]}
79... Rb7 {[%clk 0:00:32.7]} 80. Kh8 {[%clk 0:01:06.5]} 80... Kg6 {[%clk
0:00:33.9]} 81. Kg8 {[%clk 0:01:07.8]} 81... Rb8# {[%clk 0:00:35.4]} 0-1

[Event "*** Qualifier 2: Titled Tuesday 3|2 Blitz"]
[Site "Chess.com"]
[Date "2017.04.11"]
[Round "9"]
[White "Abrito99"]
[Black "chessking2151"]
[Result "1/2-1/2"]
[WhiteElo "2318"]
[BlackElo "2326"]
[TimeControl "180+2"]
[EndTime "15:12:54 PDT"]
[Termination "Game drawn by repetition"]

1. e4 {[%clk 0:03:02]} 1... c5 {[%clk 0:02:59.4]} 2. d4 {[%clk 0:03:01.5]} 2...
cxd4 {[%clk 0:02:59.6]} 3. c3 {[%clk 0:03:03.1]} 3... Nf6 {[%clk 0:02:59.5]} 4.
e5 {[%clk 0:03:03.9]} 4... Nd5 {[%clk 0:03:00.6]} 5. Nf3 {[%clk 0:03:05.8]} 5...
Nc6 {[%clk 0:02:59.1]} 6. Bc4 {[%clk 0:03:07]} 6... Nb6 {[%clk 0:02:59.4]} 7.
Bb3 {[%clk 0:03:08.6]} 7... d6 {[%clk 0:02:52.7]} 8. exd6 {[%clk 0:03:09.2]}
8... Qxd6 {[%clk 0:02:47.3]} 9. O-O {[%clk 0:03:05.3]} 9... Bg4 {[%clk
0:02:40.6]} 10. Bxf7+ {[%clk 0:03:05]} 10... Kd8 {[%clk 0:02:36.2]} 11. Bb3
{[%clk 0:02:54]} 11... e5 {[%clk 0:02:30.8]} 12. h3 {[%clk 0:02:34]} 12... Bh5
{[%clk 0:02:28]} 13. Nbd2 {[%clk 0:02:34.6]} 13... dxc3 {[%clk 0:02:18.8]} 14.
bxc3 {[%clk 0:02:32.2]} 14... Kc7 {[%clk 0:02:19.4]} 15. Qc2 {[%clk 0:02:22.5]}
15... Rd8 {[%clk 0:02:15.2]} 16. Ne4 {[%clk 0:02:21.1]} 16... Qg6 {[%clk
0:02:14.3]} 17. Neg5 {[%clk 0:02:11.4]} 17... Qxc2 {[%clk 0:02:03]} 18. Bxc2
{[%clk 0:02:13.3]} 18... Re8 {[%clk 0:02:04.1]} 19. Bb3 {[%clk 0:01:34.2]} 19...
Bd6 {[%clk 0:01:55]} 20. Ne6+ {[%clk 0:01:34.5]} 20... Rxe6 {[%clk 0:01:31.5]}
21. Bxe6 {[%clk 0:01:36.4]} 21... Rf8 {[%clk 0:01:29.7]} 22. Bg4 {[%clk
0:01:26.3]} 22... Bg6 {[%clk 0:01:28.9]} 23. Ng5 {[%clk 0:01:26.2]} 23... Rf6
{[%clk 0:01:20.4]} 24. Ne6+ {[%clk 0:01:20.4]} 24... Kb8 {[%clk 0:01:18.5]} 25.
Bg5 {[%clk 0:01:21.8]} 25... Rf7 {[%clk 0:01:19.7]} 26. Rad1 {[%clk 0:01:18.4]}
26... Nc8 {[%clk 0:01:20.7]} 27. c4 {[%clk 0:00:51.3]} 27... h5 {[%clk 0:01:02]}
28. Be2 {[%clk 0:00:51.6]} 28... Bc2 {[%clk 0:00:46.9]} 29. Rd2 {[%clk
0:00:46.9]} 29... Bf5 {[%clk 0:00:47.1]} 30. Nd8 {[%clk 0:00:41.2]} 30... Rc7
{[%clk 0:00:39.1]} 31. Nxc6+ {[%clk 0:00:35.5]} 31... Rxc6 {[%clk 0:00:40.1]}
32. Rfd1 {[%clk 0:00:37.1]} 32... Kc7 {[%clk 0:00:36.9]} 33. Rb2 {[%clk
0:00:31.9]} 33... b6 {[%clk 0:00:36.2]} 34. Rc1 {[%clk 0:00:24.3]} 34... e4
{[%clk 0:00:33.2]} 35. Rb3 {[%clk 0:00:21.2]} 35... Be5 {[%clk 0:00:25.1]} 36.
Bxh5 {[%clk 0:00:21.8]} 36... Nd6 {[%clk 0:00:25.6]} 37. Be2 {[%clk 0:00:22.3]}
37... a5 {[%clk 0:00:24.9]} 38. Be3 {[%clk 0:00:23]} 38... g6 {[%clk 0:00:25.1]}
39. c5 {[%clk 0:00:17.3]} 39... bxc5 {[%clk 0:00:21]} 40. Bxc5 {[%clk
0:00:18.8]} 40... Nb7 {[%clk 0:00:21.6]} 41. Bb6+ {[%clk 0:00:18.3]} 41... Kd6
{[%clk 0:00:22.5]} 42. Rd1+ {[%clk 0:00:18.3]} 42... Ke7 {[%clk 0:00:23.4]} 43.
Bd4 {[%clk 0:00:17.3]} 43... Nc5 {[%clk 0:00:18.2]} 44. Bxe5 {[%clk 0:00:14.3]}
44... Nxb3 {[%clk 0:00:19.3]} 45. axb3 {[%clk 0:00:15.9]} 45... Be6 {[%clk
0:00:19.7]} 46. Ra1 {[%clk 0:00:12.2]} 46... Rc5 {[%clk 0:00:18.5]} 47. Bd4
{[%clk 0:00:11.8]} 47... Rc2 {[%clk 0:00:18.1]} 48. Bb5 {[%clk 0:00:08]} 48...
Bxb3 {[%clk 0:00:17.2]} 49. Rxa5 {[%clk 0:00:09.1]} 49... Rc1+ {[%clk
0:00:16.7]} 50. Kh2 {[%clk 0:00:10.2]} 50... Rd1 {[%clk 0:00:18.1]} 51. Be3
{[%clk 0:00:11.2]} 51... Rd5 {[%clk 0:00:18.1]} 52. Ra7+ {[%clk 0:00:11.3]}
52... Ke6 {[%clk 0:00:18.5]} 53. Be2 {[%clk 0:00:12.2]} 53... Kf6 {[%clk
0:00:16.9]} 54. Ra6+ {[%clk 0:00:11.8]} 54... Kg7 {[%clk 0:00:16.3]} 55. Rb6
{[%clk 0:00:12.6]} 55... Bc2 {[%clk 0:00:17.4]} 56. Rb7+ {[%clk 0:00:12.7]}
56... Kf8 {[%clk 0:00:18.6]} 57. h4 {[%clk 0:00:13.7]} 57... Bd3 {[%clk
0:00:19.1]} 58. Bg4 {[%clk 0:00:13.7]} 58... Ke8 {[%clk 0:00:18.3]} 59. Bg5
{[%clk 0:00:11.7]} 59... Ra5 {[%clk 0:00:19]} 60. Re7+ {[%clk 0:00:11.4]} 60...
Kf8 {[%clk 0:00:19.9]} 61. Rc7 {[%clk 0:00:09.9]} 61... Ra1 {[%clk 0:00:18.9]}
62. Be6 {[%clk 0:00:08.6]} 62... Ra6 {[%clk 0:00:14.3]} 63. Bh6+ {[%clk
0:00:08.2]} 63... Ke8 {[%clk 0:00:13.3]} 64. Bg4 {[%clk 0:00:09.2]} 64... Kd8
{[%clk 0:00:11.5]} 65. Rg7 {[%clk 0:00:08.8]} 65... Rb6 {[%clk 0:00:08.8]} 66.
Kg3 {[%clk 0:00:09.5]} 66... Ke8 {[%clk 0:00:09.4]} 67. Be3 {[%clk 0:00:09.4]}
67... Rd6 {[%clk 0:00:09]} 68. Kf4 {[%clk 0:00:10]} 68... Rf6+ {[%clk
0:00:09.7]} 69. Kg5 {[%clk 0:00:10.1]} 69... Ra6 {[%clk 0:00:11.3]} 70. Rxg6
{[%clk 0:00:10]} 70... Ra5+ {[%clk 0:00:12.1]} 71. Kh6 {[%clk 0:00:10]} 71...
Kf7 {[%clk 0:00:13.6]} 72. Rg7+ {[%clk 0:00:08.8]} 72... Kf8 {[%clk 0:00:14.6]}
73. Bg5 {[%clk 0:00:08.5]} 73... Ra6+ {[%clk 0:00:14.4]} 74. Rg6 {[%clk
0:00:08.7]} 74... Rxg6+ {[%clk 0:00:14]} 75. Kh5 {[%clk 0:00:05.9]} 75... Rg8
{[%clk 0:00:14]} 76. Bh6+ {[%clk 0:00:06.1]} 76... Kf7 {[%clk 0:00:15.2]} 77.
Bf5 {[%clk 0:00:07.2]} 77... Be2+ {[%clk 0:00:16.2]} 78. g4 {[%clk 0:00:07.5]}
78... Bf3 {[%clk 0:00:16.9]} 79. Bg5 {[%clk 0:00:07.4]} 79... Rh8+ {[%clk
0:00:17.6]} 80. Bh6 {[%clk 0:00:06.4]} 80... Rg8 {[%clk 0:00:18.5]} 81. Bg5
{[%clk 0:00:07.2]} 81... Kg7 {[%clk 0:00:19.7]} 82. Bh6+ {[%clk 0:00:07.3]}
82... Kf7 {[%clk 0:00:20.4]} 83. Bg5 {[%clk 0:00:08.1]} 1/2-1/2

[Event "*** Qualifier 2: Titled Tuesday 3|2 Blitz"]
[Site "Chess.com"]
[Date "2017.04.11"]
[Round "9"]
[White "Konavets"]
[Black "johnathan113"]
[Result "1/2-1/2"]
[WhiteElo "2590"]
[BlackElo "2452"]
[TimeControl "180+2"]
[EndTime "15:12:58 PDT"]
[Termination "Game drawn - insufficient material"]

1. c4 {[%clk 0:03:00.6]} 1... Nf6 {[%clk 0:02:59.6]} 2. g3 {[%clk 0:03:02.1]}
2... g6 {[%clk 0:03:00.6]} 3. Bg2 {[%clk 0:03:03.5]} 3... Bg7 {[%clk 0:03:02.5]}
4. Nf3 {[%clk 0:03:05.4]} 4... O-O {[%clk 0:03:03.9]} 5. O-O {[%clk 0:03:07.3]}
5... d6 {[%clk 0:03:05.3]} 6. Nc3 {[%clk 0:03:08.3]} 6... Nc6 {[%clk 0:03:06.2]}
7. d4 {[%clk 0:03:09.7]} 7... a6 {[%clk 0:03:06.2]} 8. Bf4 {[%clk 0:03:08.9]}
8... Rb8 {[%clk 0:03:05.5]} 9. Rc1 {[%clk 0:03:10]} 9... h6 {[%clk 0:03:06.5]}
10. b3 {[%clk 0:03:10.6]} 10... g5 {[%clk 0:03:05.6]} 11. Be3 {[%clk 0:03:11.6]}
11... Ng4 {[%clk 0:03:05.3]} 12. Bd2 {[%clk 0:03:12.9]} 12... Nxd4 {[%clk
0:02:58.9]} 13. Nxd4 {[%clk 0:03:14]} 13... Bxd4 {[%clk 0:03:00.8]} 14. e3
{[%clk 0:03:15.6]} 14... Bg7 {[%clk 0:02:59.5]} 15. f4 {[%clk 0:03:09.5]} 15...
c6 {[%clk 0:02:42.1]} 16. Kh1 {[%clk 0:03:09]} 16... Qb6 {[%clk 0:02:39.8]} 17.
Qe2 {[%clk 0:03:07.5]} 17... gxf4 {[%clk 0:02:13.1]} 18. gxf4 {[%clk 0:03:06]}
18... Nf6 {[%clk 0:02:13.8]} 19. e4 {[%clk 0:03:06.1]} 19... Bg4 {[%clk
0:02:13.1]} 20. Qe1 {[%clk 0:03:07.4]} 20... Kh8 {[%clk 0:02:01.4]} 21. Qh4
{[%clk 0:03:07.2]} 21... Qd4 {[%clk 0:01:56.2]} 22. e5 {[%clk 0:03:04.4]} 22...
Qxd2 {[%clk 0:01:23.9]} 23. exf6 {[%clk 0:02:44.9]} 23... Bxf6 {[%clk
0:01:25.8]} 24. Qxh6+ {[%clk 0:02:45.4]} 24... Kg8 {[%clk 0:01:26.9]} 25. Ne4
{[%clk 0:02:46.5]} 25... Qd4 {[%clk 0:01:16.4]} 26. f5 {[%clk 0:01:57.1]} 26...
d5 {[%clk 0:01:04.9]} 27. Rf4 {[%clk 0:01:35.7]} 27... Be2 {[%clk 0:01:04.2]}
28. Ng5 {[%clk 0:00:37.5]} 28... Bxg5 {[%clk 0:01:04.8]} 29. Qxg5+ {[%clk
0:00:39.4]} 29... Qg7 {[%clk 0:01:05.8]} 30. Qh4 {[%clk 0:00:41.1]} 30... e5
{[%clk 0:00:49.6]} 31. Rf2 {[%clk 0:00:29.2]} 31... Qg4 {[%clk 0:00:44]} 32. Qh6
{[%clk 0:00:29.9]} 32... Qh5 {[%clk 0:00:26.9]} 33. Qe3 {[%clk 0:00:28.3]} 33...
Bg4 {[%clk 0:00:23.5]} 34. Rg1 {[%clk 0:00:29.3]} 34... Kh7 {[%clk 0:00:13.1]}
35. cxd5 {[%clk 0:00:23.7]} 35... cxd5 {[%clk 0:00:13.8]} 36. Bxd5 {[%clk
0:00:25.6]} 36... Rbd8 {[%clk 0:00:15.1]} 37. Be4 {[%clk 0:00:26.5]} 37... f6
{[%clk 0:00:14.7]} 38. Rfg2 {[%clk 0:00:24.1]} 38... Rd1 {[%clk 0:00:08.2]} 39.
Rxd1 {[%clk 0:00:18.4]} 39... Bxd1 {[%clk 0:00:10.1]} 40. Qc5 {[%clk 0:00:19.5]}
40... Rf7 {[%clk 0:00:08.3]} 41. Bd5 {[%clk 0:00:19.4]} 41... Bf3 {[%clk
0:00:08.5]} 42. Bxf7 {[%clk 0:00:10.7]} 42... Qxf7 {[%clk 0:00:09.3]} 43. Qe3
{[%clk 0:00:11.2]} 43... Qd5 {[%clk 0:00:07.5]} 44. Qg1 {[%clk 0:00:10.4]} 44...
Kh6 {[%clk 0:00:06.2]} 45. h4 {[%clk 0:00:10.7]} 45... Bxg2+ {[%clk 0:00:07.1]}
46. Qxg2 {[%clk 0:00:10.5]} 46... Qxg2+ {[%clk 0:00:05.4]} 47. Kxg2 {[%clk
0:00:12.4]} 47... Kh5 {[%clk 0:00:07]} 48. Kg3 {[%clk 0:00:13.4]} 48... e4
{[%clk 0:00:08.9]} 49. b4 {[%clk 0:00:14.7]} 49... b5 {[%clk 0:00:08.8]} 50. a3
{[%clk 0:00:10.2]} 50... e3 {[%clk 0:00:09.7]} 51. Kf3 {[%clk 0:00:11.6]} 51...
Kxh4 {[%clk 0:00:10.5]} 52. Kxe3 {[%clk 0:00:13.2]} 52... Kg3 {[%clk 0:00:09.9]}
53. Kd4 {[%clk 0:00:13.6]} 53... Kf4 {[%clk 0:00:10.6]} 54. Kc5 {[%clk
0:00:15.2]} 54... Kxf5 {[%clk 0:00:11.8]} 55. Kb6 {[%clk 0:00:17.1]} 55... Ke6
{[%clk 0:00:08.1]} 56. Kxa6 {[%clk 0:00:17.7]} 56... f5 {[%clk 0:00:09.2]} 57.
Kxb5 {[%clk 0:00:18.9]} 57... Kd5 {[%clk 0:00:10.3]} 58. Ka6 {[%clk 0:00:05.4]}
58... f4 {[%clk 0:00:12.2]} 59. b5 {[%clk 0:00:06.9]} 59... f3 {[%clk
0:00:14.1]} 60. b6 {[%clk 0:00:08.8]} 60... f2 {[%clk 0:00:14.3]} 61. b7 {[%clk
0:00:10.7]} 61... f1=Q+ {[%clk 0:00:15.1]} 62. Ka7 {[%clk 0:00:12.6]} 62... Qf2+
{[%clk 0:00:16.4]} 63. Ka8 {[%clk 0:00:13.5]} 63... Qe3 {[%clk 0:00:04.1]} 64.
a4 {[%clk 0:00:10.9]} 64... Qa3 {[%clk 0:00:02.3]} 65. b8=Q {[%clk 0:00:11.6]}
65... Qxa4+ {[%clk 0:00:03.7]} 66. Kb7 {[%clk 0:00:13.5]} 66... Qc6+ {[%clk
0:00:04.6]} 67. Ka7 {[%clk 0:00:15.4]} 67... Qc5+ {[%clk 0:00:05.9]} 68. Ka6
{[%clk 0:00:15.7]} 68... Qc6+ {[%clk 0:00:07]} 69. Ka5 {[%clk 0:00:16.3]} 69...
Qc5+ {[%clk 0:00:07.6]} 70. Ka4 {[%clk 0:00:17]} 70... Qc2+ {[%clk 0:00:08.2]}
71. Ka3 {[%clk 0:00:17.8]} 71... Qc3+ {[%clk 0:00:09.3]} 72. Qb3+ {[%clk
0:00:19.5]} 72... Kd4 {[%clk 0:00:09.2]} 73. Qxc3+ {[%clk 0:00:19.7]} 73... Kxc3
{[%clk 0:00:10.3]} 1/2-1/2

[Event "*** Qualifier 2: Titled Tuesday 3|2 Blitz"]
[Site "Chess.com"]
[Date "2017.04.11"]
[Round "9"]
[White "Kozok"]
[Black "likantrophuss"]
[Result "0-1"]
[WhiteElo "2284"]
[BlackElo "2401"]
[TimeControl "180+2"]
[EndTime "15:13:18 PDT"]
[Termination "likantrophuss won by resignation"]

1. e4 {[%clk 0:03:00.6]} 1... g6 {[%clk 0:02:59.8]} 2. d4 {[%clk 0:03:01.2]}
2... Bg7 {[%clk 0:02:59.9]} 3. Nc3 {[%clk 0:03:01.4]} 3... a6 {[%clk 0:03:00.3]}
4. f4 {[%clk 0:02:59.3]} 4... b5 {[%clk 0:03:01.2]} 5. Nf3 {[%clk 0:03:00.6]}
5... Bb7 {[%clk 0:03:01.7]} 6. Bd3 {[%clk 0:03:01.4]} 6... b4 {[%clk 0:02:59.9]}
7. Ne2 {[%clk 0:03:00.8]} 7... Nf6 {[%clk 0:03:00.7]} 8. Ng3 {[%clk 0:03:00]}
8... d5 {[%clk 0:03:00]} 9. e5 {[%clk 0:02:59.2]} 9... Ne4 {[%clk 0:03:00.4]}
10. Qe2 {[%clk 0:02:49.1]} 10... Nxg3 {[%clk 0:02:57.6]} 11. hxg3 {[%clk
0:02:51]} 11... e6 {[%clk 0:02:58.5]} 12. Bd2 {[%clk 0:02:35.2]} 12... Qe7
{[%clk 0:02:53.5]} 13. g4 {[%clk 0:02:33.5]} 13... Nd7 {[%clk 0:02:52.2]} 14. g5
{[%clk 0:02:29.8]} 14... c5 {[%clk 0:02:47.2]} 15. dxc5 {[%clk 0:02:22.8]} 15...
Nxc5 {[%clk 0:02:43.6]} 16. O-O-O {[%clk 0:02:22.6]} 16... Nxd3+ {[%clk
0:02:41.8]} 17. Qxd3 {[%clk 0:02:22.9]} 17... a5 {[%clk 0:02:41.5]} 18. Nd4
{[%clk 0:02:18.5]} 18... Ba6 {[%clk 0:02:41.5]} 19. Qf3 {[%clk 0:02:15.5]} 19...
Bf8 {[%clk 0:01:59.8]} 20. g4 {[%clk 0:02:12.5]} 20... Qa7 {[%clk 0:02:00.2]}
21. Be3 {[%clk 0:02:03.1]} 21... Bc5 {[%clk 0:02:01.1]} 22. f5 {[%clk
0:02:00.9]} 22... O-O-O {[%clk 0:01:52.5]} 23. Rhe1 {[%clk 0:01:53.4]} 23...
Bxd4 {[%clk 0:01:45.6]} 24. Bxd4 {[%clk 0:01:54.5]} 24... Qc7 {[%clk 0:01:44.1]}
25. Kb1 {[%clk 0:01:50.8]} 25... Kb7 {[%clk 0:01:43.8]} 26. Rc1 {[%clk
0:01:51.3]} 26... Qc4 {[%clk 0:01:39.5]} 27. Qf2 {[%clk 0:01:37.3]} 27... a4
{[%clk 0:01:30]} 28. b3 {[%clk 0:01:35.8]} 28... Qc6 {[%clk 0:01:27.2]} 29. c3
{[%clk 0:01:30.4]} 29... gxf5 {[%clk 0:01:23.8]} 30. cxb4 {[%clk 0:01:26.9]}
30... Bd3+ {[%clk 0:01:24]} 31. Ka1 {[%clk 0:01:22]} 31... Qb5 {[%clk
0:01:24.7]} 32. bxa4 {[%clk 0:01:15.6]} 32... Qxa4 {[%clk 0:01:25.5]} 33. Bb6
{[%clk 0:01:10.2]} 33... Rc8 {[%clk 0:01:24.7]} 34. Bc5 {[%clk 0:01:03.3]} 34...
Ra8 {[%clk 0:01:15.5]} 35. gxf5 {[%clk 0:00:55.2]} 35... Bxf5 {[%clk 0:01:14.8]}
36. Re3 {[%clk 0:00:44.6]} 36... Rhc8 {[%clk 0:01:10.6]} 37. Rec3 {[%clk
0:00:32.7]} 37... Rc6 {[%clk 0:01:08.9]} 38. b5 {[%clk 0:00:30.2]} 38... Qxb5
{[%clk 0:01:09.6]} 39. Qb2 {[%clk 0:00:20.8]} 39... Qxb2+ {[%clk 0:01:02.9]} 40.
Kxb2 {[%clk 0:00:22.7]} 40... Ra5 {[%clk 0:00:58.5]} 41. Rb3+ {[%clk 0:00:22.1]}
41... Kc8 {[%clk 0:00:58.1]} 42. Be3 {[%clk 0:00:20.9]} 42... Rxc1 {[%clk
0:00:58.6]} 43. Bxc1 {[%clk 0:00:22.8]} 43... Ra4 {[%clk 0:00:58.1]} 44. Rc3+
{[%clk 0:00:17.2]} 44... Kd7 {[%clk 0:00:58.6]} 45. Kb3 {[%clk 0:00:18.7]} 45...
Re4 {[%clk 0:00:59.1]} 46. Re3 {[%clk 0:00:19.8]} 46... Rg4 {[%clk 0:00:59.1]}
47. Re1 {[%clk 0:00:19.5]} 47... Bd3 {[%clk 0:00:59.4]} 48. a4 {[%clk
0:00:20.4]} 48... Kc6 {[%clk 0:00:57.2]} 49. Rh1 {[%clk 0:00:20.2]} 49... Bc4+
{[%clk 0:00:51]} 50. Kb2 {[%clk 0:00:20.6]} 50... Kb6 {[%clk 0:00:50.6]} 51.
Be3+ {[%clk 0:00:21.4]} 51... d4 {[%clk 0:00:50.2]} 52. Bd2 {[%clk 0:00:20.3]}
52... Rg2 {[%clk 0:00:50.7]} 53. Kc1 {[%clk 0:00:21.8]} 53... Bd3 {[%clk
0:00:33.8]} 54. Rh4 {[%clk 0:00:22.6]} 54... Kc5 {[%clk 0:00:31.2]} 55. a5
{[%clk 0:00:20]} 55... Kc4 {[%clk 0:00:29.1]} 56. Rf4 {[%clk 0:00:19.2]} 56...
Kb3 {[%clk 0:00:24.5]} 57. Rxd4 {[%clk 0:00:20.5]} 57... Rg1+ {[%clk 0:00:25]}
58. Be1 {[%clk 0:00:21.9]} 58... Rxe1+ {[%clk 0:00:18.1]} 59. Kd2 {[%clk
0:00:23.6]} 59... Rxe5 {[%clk 0:00:16.7]} 60. Rxd3+ {[%clk 0:00:24.8]} 60... Kb4
{[%clk 0:00:17.7]} 61. Rf3 {[%clk 0:00:24.1]} 61... Rxa5 {[%clk 0:00:16.8]} 62.
Rxf7 {[%clk 0:00:25.2]} 62... Rxg5 {[%clk 0:00:17.8]} 63. Rxh7 {[%clk
0:00:26.3]} 63... Kc4 {[%clk 0:00:17.9]} 64. Ke3 {[%clk 0:00:26.8]} 64... Kd5
{[%clk 0:00:17.6]} 65. Ra7 {[%clk 0:00:26.1]} 65... Rg3+ {[%clk 0:00:18.5]} 66.
Ke2 {[%clk 0:00:27.3]} 66... Ke5 {[%clk 0:00:17.5]} 67. Ra5+ {[%clk 0:00:28.4]}
67... Kf4 {[%clk 0:00:18]} 68. Ra4+ {[%clk 0:00:29.6]} 68... Kf5 {[%clk
0:00:18.9]} 69. Ra5+ {[%clk 0:00:30.9]} 69... e5 {[%clk 0:00:19.7]} 70. Kf2
{[%clk 0:00:31.9]} 70... Rb3 {[%clk 0:00:20]} 71. Ke2 {[%clk 0:00:32.5]} 71...
Kf4 {[%clk 0:00:20.8]} 72. Ra4+ {[%clk 0:00:23.7]} 72... e4 {[%clk 0:00:21.7]}
73. Kf2 {[%clk 0:00:25]} 73... Rb2+ {[%clk 0:00:22.5]} 74. Ke1 {[%clk
0:00:26.1]} 74... Kf3 {[%clk 0:00:23.5]} 75. Ra8 {[%clk 0:00:16.4]} 75... Rb1+
{[%clk 0:00:24]} 76. Kd2 {[%clk 0:00:17.6]} 76... e3+ {[%clk 0:00:25.2]} 77. Kc2
{[%clk 0:00:18.8]} 77... Rb7 {[%clk 0:00:24.8]} 78. Rd8 {[%clk 0:00:16.2]} 78...
Ke2 {[%clk 0:00:25]} 79. Kc1 {[%clk 0:00:16.4]} 79... Rc7+ {[%clk 0:00:26.2]}
80. Kb2 {[%clk 0:00:17.8]} 80... Ke1 {[%clk 0:00:27.1]} 81. Re8 {[%clk
0:00:16.2]} 81... e2 {[%clk 0:00:28.1]} 82. Kb1 {[%clk 0:00:17.9]} 82... Rc4
{[%clk 0:00:28.7]} 83. Kb2 {[%clk 0:00:17.3]} 83... Kd2 {[%clk 0:00:29.3]} 84.
Kb3 {[%clk 0:00:18.9]} 84... Rc3+ {[%clk 0:00:29.8]} 85. Kb2 {[%clk 0:00:19.5]}
85... Re3 {[%clk 0:00:30.7]} 86. Rd8+ {[%clk 0:00:20.1]} 86... Rd3 {[%clk
0:00:31.4]} 0-1